[Event "*** Titled Tuesday Blitz"]
[Site "Chess.com"]
[Date "2020.04.14"]
[Round "9"]
[White "nickmatta"]
[Black "Efremov_Vlad"]
[Result "1/2-1/2"]
[WhiteElo "2307"]
[BlackElo "2161"]
[TimeControl "180+1"]
[EndTime "11:42:46 PDT"]
[Termination "Game drawn by repetition"]

1. d4 {[%clk 0:03:00.9]} 1... d5 {[%clk 0:02:59.3]} 2. c4 {[%clk 0:02:57.6]}
2... e6 {[%clk 0:02:59.6]} 3. Nc3 {[%clk 0:02:57.5]} 3... Nf6 {[%clk 0:03:00.2]}
4. cxd5 {[%clk 0:02:57.6]} 4... Nxd5 {[%clk 0:02:59.7]} 5. e4 {[%clk 0:02:57.3]}
5... Nxc3 {[%clk 0:03:00.4]} 6. bxc3 {[%clk 0:02:58.2]} 6... c5 {[%clk
0:03:00.4]} 7. Rb1 {[%clk 0:02:58.9]} 7... Be7 {[%clk 0:02:57.8]} 8. Nf3 {[%clk
0:02:59.1]} 8... b6 {[%clk 0:02:48.3]} 9. Bc4 {[%clk 0:02:54.9]} 9... O-O {[%clk
0:02:43.8]} 10. O-O {[%clk 0:02:54.8]} 10... Bb7 {[%clk 0:02:43.3]} 11. d5
{[%clk 0:02:55]} 11... exd5 {[%clk 0:02:40.9]} 12. exd5 {[%clk 0:02:53.3]} 12...
Bd6 {[%clk 0:02:32.9]} 13. Bb3 {[%clk 0:02:42.4]} 13... Nd7 {[%clk 0:02:32.6]}
14. c4 {[%clk 0:02:42.1]} 14... Ne5 {[%clk 0:02:32.7]} 15. Bc2 {[%clk
0:02:39.1]} 15... Qf6 {[%clk 0:02:27.1]} 16. Ng5 {[%clk 0:02:33.1]} 16... Ng6
{[%clk 0:02:17.7]} 17. Qh5 {[%clk 0:02:27.8]} 17... h6 {[%clk 0:02:16.1]} 18.
Ne4 {[%clk 0:02:28]} 18... Qe5 {[%clk 0:02:11.5]} 19. Qxe5 {[%clk 0:02:16.6]}
19... Bxe5 {[%clk 0:02:11]} 20. Nxc5 {[%clk 0:02:11.3]} 20... Bxd5 {[%clk
0:01:53.9]} 21. Nd7 {[%clk 0:02:03.3]} 21... Bxc4 {[%clk 0:01:53.3]} 22. Bxg6
{[%clk 0:01:54.1]} 22... Bxf1 {[%clk 0:01:46.9]} 23. Nxe5 {[%clk 0:01:52.6]}
23... fxg6 {[%clk 0:01:36]} 24. Kxf1 {[%clk 0:01:52.6]} 24... g5 {[%clk
0:01:33.4]} 25. Be3 {[%clk 0:01:50.2]} 25... Rf5 {[%clk 0:01:31]} 26. Nc6 {[%clk
0:01:47.6]} 26... Rf6 {[%clk 0:01:24.5]} 27. Nd4 {[%clk 0:01:39.9]} 27... Rd8
{[%clk 0:01:21.6]} 28. Rc1 {[%clk 0:01:38]} 28... Rfd6 {[%clk 0:01:19.2]} 29.
Rc4 {[%clk 0:01:36.1]} 29... a6 {[%clk 0:01:13.3]} 30. Ke2 {[%clk 0:01:35.3]}
30... b5 {[%clk 0:01:13.5]} 31. Rb4 {[%clk 0:01:30.9]} 31... Rd5 {[%clk
0:01:06.8]} 32. Ne6 {[%clk 0:01:25]} 32... Rc8 {[%clk 0:01:05.3]} 33. Rb2 {[%clk
0:01:19.1]} 33... Rc4 {[%clk 0:01:01.5]} 34. h3 {[%clk 0:01:05.6]} 34... Kf7
{[%clk 0:00:59.1]} 35. Nd4 {[%clk 0:00:56.8]} 35... Rdxd4 {[%clk 0:00:58]} 36.
Bxd4 {[%clk 0:00:57.7]} 36... Rxd4 {[%clk 0:00:58.4]} 37. Rc2 {[%clk 0:00:58.4]}
37... Ra4 {[%clk 0:00:56.7]} 38. Kd2 {[%clk 0:00:52.6]} 38... Ke6 {[%clk
0:00:54.4]} 39. Kc1 {[%clk 0:00:52]} 39... Kd5 {[%clk 0:00:53.8]} 40. Kb2 {[%clk
0:00:52.2]} 40... Rc4 {[%clk 0:00:38.3]} 41. Re2 {[%clk 0:00:52.3]} 41... Re4
{[%clk 0:00:38.3]} 42. Rc2 {[%clk 0:00:50.7]} 42... Kd4 {[%clk 0:00:34.9]} 43.
f3 {[%clk 0:00:42.4]} 43... Re3 {[%clk 0:00:33.5]} 44. Rd2+ {[%clk 0:00:29.8]}
44... Rd3 {[%clk 0:00:30.2]} 45. Re2 {[%clk 0:00:29.7]} 45... Re3 {[%clk
0:00:26.5]} 46. Rd2+ {[%clk 0:00:29.7]} 46... Rd3 {[%clk 0:00:26.6]} 47. Re2
{[%clk 0:00:30.2]} 47... Re3 {[%clk 0:00:16]} 48. Rd2+ {[%clk 0:00:29.1]}
1/2-1/2

[Event "*** Titled Tuesday Blitz"]
[Site "Chess.com"]
[Date "2020.04.14"]
[Round "9"]
[White "mishanick"]
[Black "Jadro9"]
[Result "1-0"]
[WhiteElo "2992"]
[BlackElo "2707"]
[TimeControl "180+1"]
[EndTime "11:42:47 PDT"]
[Termination "mishanick won by resignation"]

1. d4 {[%clk 0:01:58.8]} 1... d5 {[%clk 0:02:57.7]} 2. c4 {[%clk 0:01:59.2]}
2... e6 {[%clk 0:02:57.8]} 3. Nf3 {[%clk 0:02:00.1]} 3... Nf6 {[%clk 0:02:57.4]}
4. Nc3 {[%clk 0:02:00.6]} 4... a6 {[%clk 0:02:57.8]} 5. cxd5 {[%clk 0:01:59.1]}
5... exd5 {[%clk 0:02:58.7]} 6. Bg5 {[%clk 0:01:59.7]} 6... c6 {[%clk
0:02:55.1]} 7. e3 {[%clk 0:01:59.8]} 7... Be6 {[%clk 0:02:51.3]} 8. Bd3 {[%clk
0:02:00.2]} 8... Nbd7 {[%clk 0:02:51.6]} 9. O-O {[%clk 0:01:58.1]} 9... Bd6
{[%clk 0:02:51.7]} 10. Qc2 {[%clk 0:01:58.9]} 10... h6 {[%clk 0:02:51.7]} 11.
Bf4 {[%clk 0:01:58.7]} 11... Qc7 {[%clk 0:02:52]} 12. Bxd6 {[%clk 0:01:58.7]}
12... Qxd6 {[%clk 0:02:52]} 13. Rab1 {[%clk 0:01:59.1]} 13... a5 {[%clk
0:02:47.7]} 14. a3 {[%clk 0:01:49.8]} 14... O-O {[%clk 0:02:47.3]} 15. Na4
{[%clk 0:01:47.2]} 15... Rfe8 {[%clk 0:02:40.4]} 16. Nc5 {[%clk 0:01:46.1]}
16... b6 {[%clk 0:02:33.1]} 17. Nxd7 {[%clk 0:01:45.4]} 17... Nxd7 {[%clk
0:02:31.5]} 18. b4 {[%clk 0:01:45.5]} 18... axb4 {[%clk 0:02:29.6]} 19. axb4
{[%clk 0:01:46.4]} 19... b5 {[%clk 0:02:26]} 20. Rfc1 {[%clk 0:01:46.2]} 20...
Rec8 {[%clk 0:02:26.2]} 21. Nd2 {[%clk 0:01:46.2]} 21... Nb6 {[%clk 0:02:26.4]}
22. Nb3 {[%clk 0:01:43.1]} 22... Nc4 {[%clk 0:02:26.8]} 23. Qc3 {[%clk
0:01:43.1]} 23... Ra3 {[%clk 0:02:25.9]} 24. Qe1 {[%clk 0:01:41.4]} 24... Rca8
{[%clk 0:02:22]} 25. Nc5 {[%clk 0:01:41.9]} 25... Qe7 {[%clk 0:02:02.9]} 26. h3
{[%clk 0:01:28.4]} 26... Ra2 {[%clk 0:01:48.7]} 27. Ra1 {[%clk 0:01:26.6]} 27...
Qa7 {[%clk 0:01:48]} 28. Rxa2 {[%clk 0:01:26.3]} 28... Qxa2 {[%clk 0:01:48.7]}
29. Qe2 {[%clk 0:01:22.2]} 29... Qxe2 {[%clk 0:01:39.2]} 30. Bxe2 {[%clk
0:01:23.1]} 30... Ra2 {[%clk 0:01:38.6]} 31. Bf1 {[%clk 0:01:20.3]} 31... Bf5
{[%clk 0:01:36.9]} 32. g4 {[%clk 0:01:13.6]} 32... Bg6 {[%clk 0:01:35.7]} 33.
Kg2 {[%clk 0:01:10.5]} 33... Rb2 {[%clk 0:01:35.2]} 34. Bxc4 {[%clk 0:01:03.5]}
34... bxc4 {[%clk 0:01:30.4]} 35. Nd7 {[%clk 0:00:53.3]} 35... Be4+ {[%clk
0:00:36.6]} 36. Kg3 {[%clk 0:00:52.9]} 36... Rxb4 {[%clk 0:00:36.9]} 37. Ne5
{[%clk 0:00:49]} 37... Rb6 {[%clk 0:00:32.8]} 38. Nd7 {[%clk 0:00:48.8]} 38...
Rb1 {[%clk 0:00:25.7]} 39. Rc3 {[%clk 0:00:45.5]} 39... Rb3 {[%clk 0:00:25.5]}
40. Rc1 {[%clk 0:00:45.6]} 40... Rb1 {[%clk 0:00:17.4]} 41. Rc3 {[%clk 0:00:45]}
41... Rg1+ {[%clk 0:00:16.1]} 42. Kf4 {[%clk 0:00:44.5]} 42... Rf1 {[%clk
0:00:14.7]} 43. Kg3 {[%clk 0:00:44.5]} 43... Rg1+ {[%clk 0:00:14.8]} 44. Kf4
{[%clk 0:00:44.9]} 44... Rf1 {[%clk 0:00:14.5]} 45. Kg3 {[%clk 0:00:44.6]} 45...
g5 {[%clk 0:00:15.2]} 46. Nf6+ {[%clk 0:00:41.2]} 46... Kg7 {[%clk 0:00:15.6]}
47. Nxe4 {[%clk 0:00:42.1]} 47... dxe4 {[%clk 0:00:16.2]} 48. Rxc4 {[%clk
0:00:42.6]} 48... Rg1+ {[%clk 0:00:16.7]} 49. Kh2 {[%clk 0:00:42.9]} 49... Rf1
{[%clk 0:00:16.4]} 50. Kg2 {[%clk 0:00:43.3]} 50... Rd1 {[%clk 0:00:16.2]} 51.
Rxc6 {[%clk 0:00:43.7]} 51... Rd2 {[%clk 0:00:15.3]} 52. Rc5 {[%clk 0:00:43.9]}
1-0

[Event "*** Titled Tuesday Blitz"]
[Site "Chess.com"]
[Date "2020.04.14"]
[Round "9"]
[White "BasilSmash"]
[Black "ZiggyStardust64"]
[Result "0-1"]
[WhiteElo "2405"]
[BlackElo "2602"]
[TimeControl "180+1"]
[EndTime "11:42:49 PDT"]
[Termination "ZiggyStardust64 won on time"]

1. d4 {[%clk 0:03:00.9]} 1... e6 {[%clk 0:02:59.9]} 2. Nf3 {[%clk 0:03:00.2]}
2... c5 {[%clk 0:02:59.6]} 3. g3 {[%clk 0:02:59]} 3... Qa5+ {[%clk 0:02:59.6]}
4. c3 {[%clk 0:02:49.5]} 4... cxd4 {[%clk 0:02:59.1]} 5. Nxd4 {[%clk 0:02:49.4]}
5... d5 {[%clk 0:02:59.3]} 6. Bg2 {[%clk 0:02:48.7]} 6... Nf6 {[%clk 0:02:58.4]}
7. O-O {[%clk 0:02:48.4]} 7... Be7 {[%clk 0:02:48.9]} 8. c4 {[%clk 0:02:46.3]}
8... dxc4 {[%clk 0:02:43.9]} 9. Nd2 {[%clk 0:02:39.4]} 9... e5 {[%clk
0:02:33.2]} 10. N4f3 {[%clk 0:01:47.2]} 10... Be6 {[%clk 0:02:31.6]} 11. Qc2
{[%clk 0:01:40.5]} 11... Qc7 {[%clk 0:02:15]} 12. b3 {[%clk 0:01:37.8]} 12...
O-O {[%clk 0:02:00.4]} 13. bxc4 {[%clk 0:01:33.4]} 13... Nbd7 {[%clk 0:01:59.7]}
14. Bb2 {[%clk 0:01:31.7]} 14... Rac8 {[%clk 0:01:52.9]} 15. Rfc1 {[%clk
0:01:29.2]} 15... h6 {[%clk 0:01:52.3]} 16. Rab1 {[%clk 0:01:27]} 16... Rfd8
{[%clk 0:01:51]} 17. Qa4 {[%clk 0:01:22.2]} 17... Nc5 {[%clk 0:01:44.2]} 18. Qc2
{[%clk 0:01:14]} 18... e4 {[%clk 0:01:43.6]} 19. Be5 {[%clk 0:01:11.3]} 19...
Qa5 {[%clk 0:01:00.3]} 20. Nd4 {[%clk 0:01:05.4]} 20... Bg4 {[%clk 0:00:50.7]}
21. Rb5 {[%clk 0:00:28.7]} 21... Qa6 {[%clk 0:00:50.4]} 22. Nxe4 {[%clk
0:00:21.2]} 22... Ncxe4 {[%clk 0:00:45.1]} 23. Bxe4 {[%clk 0:00:22.1]} 23... Rd7
{[%clk 0:00:10.7]} 24. Rcb1 {[%clk 0:00:13.8]} 24... Nxe4 {[%clk 0:00:07.3]} 25.
Qxe4 {[%clk 0:00:13.3]} 25... Bh3 {[%clk 0:00:07.5]} 26. Rxb7 {[%clk 0:00:08.6]}
26... Rxb7 {[%clk 0:00:07.5]} 27. Qxb7 {[%clk 0:00:09]} 27... Qxb7 {[%clk
0:00:07.9]} 28. Rxb7 {[%clk 0:00:09.4]} 28... Rxc4 {[%clk 0:00:08.5]} 29. f3
{[%clk 0:00:08.3]} 29... Bc5 {[%clk 0:00:08.5]} 30. Rb8+ {[%clk 0:00:05.6]}
30... Kh7 {[%clk 0:00:08.2]} 31. Rd8 {[%clk 0:00:04.8]} 31... f6 {[%clk
0:00:07.3]} 32. Kf2 {[%clk 0:00:02.2]} 32... fxe5 {[%clk 0:00:07.4]} 0-1

[Event "*** Titled Tuesday Blitz"]
[Site "Chess.com"]
[Date "2020.04.14"]
[Round "9"]
[White "chessdjw"]
[Black "Embrujada"]
[Result "1-0"]
[WhiteElo "2622"]
[BlackElo "2413"]
[TimeControl "180+1"]
[EndTime "11:42:50 PDT"]
[Termination "chessdjw won by resignation"]

1. e4 {[%clk 0:03:00.9]} 1... c6 {[%clk 0:03:00.2]} 2. Nf3 {[%clk 0:03:00.6]}
2... d5 {[%clk 0:03:00.4]} 3. Nc3 {[%clk 0:03:01.4]} 3... Nf6 {[%clk 0:02:59]}
4. e5 {[%clk 0:02:59.9]} 4... Ne4 {[%clk 0:02:59.5]} 5. Ne2 {[%clk 0:02:53.4]}
5... Qb6 {[%clk 0:02:59.6]} 6. d4 {[%clk 0:02:51.5]} 6... e6 {[%clk 0:02:32.6]}
7. Ng3 {[%clk 0:02:50.5]} 7... c5 {[%clk 0:02:31.2]} 8. Bd3 {[%clk 0:02:47]}
8... Nxg3 {[%clk 0:02:31.1]} 9. fxg3 {[%clk 0:02:45.1]} 9... Nc6 {[%clk
0:02:31.5]} 10. O-O {[%clk 0:02:41.1]} 10... h6 {[%clk 0:02:31.9]} 11. Kh1
{[%clk 0:02:34]} 11... cxd4 {[%clk 0:02:31.3]} 12. a3 {[%clk 0:02:30]} 12... Bd7
{[%clk 0:02:31.3]} 13. b4 {[%clk 0:02:28]} 13... a6 {[%clk 0:02:31.6]} 14. Bb2
{[%clk 0:02:27.8]} 14... Be7 {[%clk 0:02:29.3]} 15. Qd2 {[%clk 0:02:25.5]} 15...
Rc8 {[%clk 0:02:29]} 16. Rae1 {[%clk 0:02:21.2]} 16... Qc7 {[%clk 0:01:53.4]}
17. Nxd4 {[%clk 0:02:10.8]} 17... Nxd4 {[%clk 0:01:52.7]} 18. Bxd4 {[%clk
0:02:10.7]} 18... Bb5 {[%clk 0:01:50.8]} 19. Qf4 {[%clk 0:01:43.3]} 19... O-O
{[%clk 0:01:48.6]} 20. h4 {[%clk 0:01:22.6]} 20... Bc4 {[%clk 0:01:34.8]} 21.
Rf2 {[%clk 0:01:16.1]} 21... a5 {[%clk 0:01:31.9]} 22. Qd2 {[%clk 0:00:55.3]}
22... axb4 {[%clk 0:01:24.8]} 23. axb4 {[%clk 0:00:56.2]} 23... Ra8 {[%clk
0:01:25]} 24. Ref1 {[%clk 0:00:55.4]} 24... Ra4 {[%clk 0:01:19.6]} 25. c3 {[%clk
0:00:36.7]} 25... b5 {[%clk 0:00:59.9]} 26. Qe3 {[%clk 0:00:36.2]} 26... Ra3
{[%clk 0:00:54.4]} 27. Re1 {[%clk 0:00:32]} 27... Bxb4 {[%clk 0:00:49.8]} 28.
Bb1 {[%clk 0:00:25]} 28... Ba5 {[%clk 0:00:46.5]} 29. Qc1 {[%clk 0:00:24.2]}
29... Ra1 {[%clk 0:00:42.7]} 30. Bh7+ {[%clk 0:00:18.5]} 30... Kxh7 {[%clk
0:00:42.5]} 31. Qxa1 {[%clk 0:00:19.4]} 31... Ra8 {[%clk 0:00:37.8]} 32. Qb2
{[%clk 0:00:19.1]} 32... Qb7 {[%clk 0:00:21.9]} 33. Ra1 {[%clk 0:00:18.3]} 33...
Bd8 {[%clk 0:00:20.9]} 34. Rxa8 {[%clk 0:00:17.1]} 34... Qxa8 {[%clk 0:00:21.4]}
35. Rxf7 {[%clk 0:00:17.4]} 35... Qa4 {[%clk 0:00:19.6]} 36. Qb1+ {[%clk
0:00:16.8]} 36... Kg8 {[%clk 0:00:18.4]} 37. Qg6 {[%clk 0:00:17.1]} 37... Qa1+
{[%clk 0:00:09]} 38. Kh2 {[%clk 0:00:16.9]} 1-0

[Event "*** Titled Tuesday Blitz"]
[Site "Chess.com"]
[Date "2020.04.14"]
[Round "9"]
[White "MusicCityMaster"]
[Black "Spalir"]
[Result "1/2-1/2"]
[WhiteElo "2319"]
[BlackElo "2572"]
[TimeControl "180+1"]
[EndTime "11:42:50 PDT"]
[Termination "Game drawn by repetition"]

1. d4 {[%clk 0:03:00.9]} 1... Nf6 {[%clk 0:02:58.3]} 2. c4 {[%clk 0:03:00.8]}
2... e6 {[%clk 0:02:58.5]} 3. Nc3 {[%clk 0:03:01]} 3... d5 {[%clk 0:02:58.8]} 4.
Bg5 {[%clk 0:02:59.2]} 4... Be7 {[%clk 0:02:58.8]} 5. e3 {[%clk 0:02:59.5]} 5...
O-O {[%clk 0:02:58.4]} 6. Nf3 {[%clk 0:02:59.7]} 6... h6 {[%clk 0:02:58.8]} 7.
Bxf6 {[%clk 0:02:59.4]} 7... Bxf6 {[%clk 0:02:59.7]} 8. Rc1 {[%clk 0:02:59.4]}
8... c6 {[%clk 0:03:00]} 9. Bd3 {[%clk 0:02:59.4]} 9... Nd7 {[%clk 0:03:00.6]}
10. O-O {[%clk 0:02:58.7]} 10... dxc4 {[%clk 0:02:59.3]} 11. Bxc4 {[%clk
0:02:58.7]} 11... e5 {[%clk 0:03:00.2]} 12. Ne4 {[%clk 0:02:57.6]} 12... exd4
{[%clk 0:02:59.6]} 13. Nxf6+ {[%clk 0:02:57.2]} 13... Qxf6 {[%clk 0:03:00.5]}
14. Qxd4 {[%clk 0:02:52.7]} 14... Qxd4 {[%clk 0:02:59.1]} 15. Nxd4 {[%clk
0:02:52.4]} 15... Ne5 {[%clk 0:02:58.3]} 16. Bb3 {[%clk 0:02:49.4]} 16... Nd3
{[%clk 0:02:55.2]} 17. Rc3 {[%clk 0:02:42.5]} 17... Nb4 {[%clk 0:02:54.4]} 18.
a3 {[%clk 0:02:39.9]} 18... Na6 {[%clk 0:02:55]} 19. e4 {[%clk 0:02:34.4]} 19...
Rd8 {[%clk 0:02:52.4]} 20. Nf3 {[%clk 0:02:28.7]} 20... Be6 {[%clk 0:02:49.7]}
21. Bc2 {[%clk 0:02:21.8]} 21... Nc7 {[%clk 0:02:46.8]} 22. h3 {[%clk 0:02:19]}
22... Kf8 {[%clk 0:02:43.5]} 23. Ne5 {[%clk 0:02:14.4]} 23... Rd2 {[%clk
0:02:38.9]} 24. a4 {[%clk 0:02:02.6]} 24... Rad8 {[%clk 0:02:36.3]} 25. f4
{[%clk 0:01:59.1]} 25... f6 {[%clk 0:02:18.3]} 26. Ng6+ {[%clk 0:01:51]} 26...
Ke8 {[%clk 0:02:16.6]} 27. e5 {[%clk 0:01:45.6]} 27... f5 {[%clk 0:02:13.1]} 28.
Nh4 {[%clk 0:01:40.3]} 28... Nd5 {[%clk 0:02:11.7]} 29. Rc5 {[%clk 0:01:37.5]}
29... Ne3 {[%clk 0:02:10.7]} 30. Rc1 {[%clk 0:01:26.1]} 30... g5 {[%clk
0:02:10.7]} 31. fxg5 {[%clk 0:01:22.3]} 31... hxg5 {[%clk 0:02:11.6]} 32. Nf3
{[%clk 0:01:22.2]} 32... Rxg2+ {[%clk 0:02:10.7]} 33. Kh1 {[%clk 0:01:21.8]}
33... Rg3 {[%clk 0:02:08.3]} 34. Ng1 {[%clk 0:01:19.9]} 34... Rd2 {[%clk
0:02:05.3]} 35. Rc3 {[%clk 0:01:15]} 35... f4 {[%clk 0:02:03.2]} 36. Be4 {[%clk
0:01:12.7]} 36... Rxb2 {[%clk 0:01:57.9]} 37. a5 {[%clk 0:01:09.4]} 37... Bxh3
{[%clk 0:01:47.2]} 38. a6 {[%clk 0:01:03.3]} 38... Bg2+ {[%clk 0:01:43.5]} 39.
Bxg2 {[%clk 0:01:02.8]} 39... Rgxg2 {[%clk 0:01:41.9]} 40. Nf3 {[%clk
0:01:02.6]} 40... bxa6 {[%clk 0:01:32.1]} 41. Rxc6 {[%clk 0:01:01.5]} 41... g4
{[%clk 0:01:12]} 42. Re6+ {[%clk 0:00:59.4]} 42... Kd7 {[%clk 0:00:06]} 43. Rd6+
{[%clk 0:00:58.9]} 43... Ke7 {[%clk 0:00:06.6]} 44. Rc7+ {[%clk 0:00:44.9]}
44... Ke8 {[%clk 0:00:07]} 45. Rc8+ {[%clk 0:00:44.5]} 45... Ke7 {[%clk
0:00:07.6]} 46. Rc7+ {[%clk 0:00:37.8]} 46... Ke8 {[%clk 0:00:04.1]} 47. Rc8+
{[%clk 0:00:37.2]} 47... Ke7 {[%clk 0:00:04.4]} 48. Rc7+ {[%clk 0:00:37.3]}
1/2-1/2

[Event "*** Titled Tuesday Blitz"]
[Site "Chess.com"]
[Date "2020.04.14"]
[Round "9"]
[White "guillembaches"]
[Black "katchesskat"]
[Result "1-0"]
[WhiteElo "2472"]
[BlackElo "2214"]
[TimeControl "180+1"]
[EndTime "11:42:51 PDT"]
[Termination "guillembaches won on time"]

1. e4 {[%clk 0:03:00.9]} 1... c5 {[%clk 0:03:00.9]} 2. Nf3 {[%clk 0:03:00.9]}
2... e6 {[%clk 0:03:00.9]} 3. g3 {[%clk 0:03:00.5]} 3... a6 {[%clk 0:02:59.5]}
4. Bg2 {[%clk 0:03:00.4]} 4... b5 {[%clk 0:02:59.7]} 5. O-O {[%clk 0:03:00.4]}
5... Bb7 {[%clk 0:03:00]} 6. Re1 {[%clk 0:03:00.4]} 6... Qc7 {[%clk 0:03:00]} 7.
d4 {[%clk 0:02:59.1]} 7... cxd4 {[%clk 0:02:59.9]} 8. Nxd4 {[%clk 0:02:59.1]}
8... d6 {[%clk 0:02:59.3]} 9. a4 {[%clk 0:02:58]} 9... bxa4 {[%clk 0:02:57.8]}
10. Rxa4 {[%clk 0:02:52.3]} 10... Nd7 {[%clk 0:02:57.6]} 11. Nc3 {[%clk
0:02:50.9]} 11... Nc5 {[%clk 0:02:56.1]} 12. Rc4 {[%clk 0:02:43.1]} 12... Qb6
{[%clk 0:02:51.4]} 13. b4 {[%clk 0:02:30.8]} 13... Nd7 {[%clk 0:02:47.1]} 14.
Be3 {[%clk 0:02:14.6]} 14... Ne5 {[%clk 0:02:20.8]} 15. Nxe6 {[%clk 0:01:50.8]}
15... Nxc4 {[%clk 0:02:19.8]} 16. Bxb6 {[%clk 0:01:48.6]} 16... fxe6 {[%clk
0:02:19.5]} 17. Qd4 {[%clk 0:01:42.5]} 17... Rc8 {[%clk 0:02:06.8]} 18. Bh3
{[%clk 0:01:28.3]} 18... Kf7 {[%clk 0:01:48.6]} 19. Ba7 {[%clk 0:01:20]} 19...
Be7 {[%clk 0:01:31.3]} 20. Nd5 {[%clk 0:01:17.1]} 20... Bf6 {[%clk 0:01:03.4]}
21. Nxf6 {[%clk 0:01:11.5]} 21... Nxf6 {[%clk 0:01:04.3]} 22. f4 {[%clk
0:01:11.5]} 22... Rhe8 {[%clk 0:01:00.2]} 23. Bf1 {[%clk 0:01:00.4]} 23... d5
{[%clk 0:00:47.9]} 24. exd5 {[%clk 0:00:57.5]} 24... Bxd5 {[%clk 0:00:44.5]} 25.
Bc5 {[%clk 0:00:53.5]} 25... Na3 {[%clk 0:00:36.7]} 26. Bd3 {[%clk 0:00:48]}
26... Nb5 {[%clk 0:00:35.4]} 27. Qa1 {[%clk 0:00:47.2]} 27... Rc6 {[%clk
0:00:29.2]} 28. c4 {[%clk 0:00:43.5]} 28... Bf3 {[%clk 0:00:10.2]} 29. cxb5
{[%clk 0:00:41.1]} 29... Rcc8 {[%clk 0:00:10.3]} 30. bxa6 {[%clk 0:00:40.4]}
30... Red8 {[%clk 0:00:10.1]} 31. Bf1 {[%clk 0:00:39.6]} 31... Rd2 {[%clk
0:00:09.7]} 32. a7 {[%clk 0:00:37.7]} 32... Ng4 {[%clk 0:00:07.9]} 33. h3 {[%clk
0:00:29]} 33... Nh2 {[%clk 0:00:06.1]} 34. Bf2 {[%clk 0:00:28.1]} 34... Rcc2
{[%clk 0:00:02]} 35. Kxh2 {[%clk 0:00:25]} 35... Rxf2+ {[%clk 0:00:01.8]} 36.
Kg1 {[%clk 0:00:25.3]} 36... Bg2 {[%clk 0:00:01.6]} 37. a8=Q {[%clk 0:00:23.3]}
1-0

[Event "*** Titled Tuesday Blitz"]
[Site "Chess.com"]
[Date "2020.04.14"]
[Round "9"]
[White "davidkalashian"]
[Black "swisspower96"]
[Result "1-0"]
[WhiteElo "2523"]
[BlackElo "2640"]
[TimeControl "180+1"]
[EndTime "11:42:52 PDT"]
[Termination "davidkalashian won by resignation"]

1. d4 {[%clk 0:03:00.9]} 1... Nf6 {[%clk 0:02:59.3]} 2. c4 {[%clk 0:02:59.5]}
2... e6 {[%clk 0:02:59.2]} 3. Nf3 {[%clk 0:02:58.8]} 3... d5 {[%clk 0:02:58.6]}
4. Nc3 {[%clk 0:02:57.4]} 4... Bb4 {[%clk 0:02:58.1]} 5. Bg5 {[%clk 0:02:53.7]}
5... h6 {[%clk 0:02:57.7]} 6. Bxf6 {[%clk 0:02:53]} 6... Qxf6 {[%clk 0:02:58.6]}
7. Qa4+ {[%clk 0:02:53]} 7... Nc6 {[%clk 0:02:58.4]} 8. e3 {[%clk 0:02:53.5]}
8... O-O {[%clk 0:02:57.7]} 9. Rc1 {[%clk 0:02:53.9]} 9... Rd8 {[%clk
0:02:28.5]} 10. Be2 {[%clk 0:02:51.8]} 10... dxc4 {[%clk 0:02:23.7]} 11. Bxc4
{[%clk 0:02:50.9]} 11... Bd6 {[%clk 0:02:23.1]} 12. O-O {[%clk 0:02:47]} 12...
a6 {[%clk 0:02:18.3]} 13. Ne4 {[%clk 0:02:45.8]} 13... Qe7 {[%clk 0:02:16.3]}
14. Nxd6 {[%clk 0:02:45.6]} 14... cxd6 {[%clk 0:02:14.2]} 15. d5 {[%clk
0:02:40.9]} 15... Ne5 {[%clk 0:02:13.9]} 16. Nxe5 {[%clk 0:02:39.5]} 16... dxe5
{[%clk 0:02:14.4]} 17. e4 {[%clk 0:02:20.9]} 17... Bd7 {[%clk 0:01:36.7]} 18.
Qa5 {[%clk 0:02:12.9]} 18... Rac8 {[%clk 0:01:32.5]} 19. Bb3 {[%clk 0:01:58.2]}
19... exd5 {[%clk 0:01:23.6]} 20. Bxd5 {[%clk 0:01:55.4]} 20... Bb5 {[%clk
0:01:17.3]} 21. Rfe1 {[%clk 0:01:53.6]} 21... h5 {[%clk 0:00:58.8]} 22. h3
{[%clk 0:01:50.1]} 22... h4 {[%clk 0:00:57.1]} 23. Qb6 {[%clk 0:01:47.1]} 23...
Rxc1 {[%clk 0:00:41.5]} 24. Rxc1 {[%clk 0:01:45.6]} 24... Rd7 {[%clk 0:00:42]}
25. Qe3 {[%clk 0:01:35.4]} 25... Qf6 {[%clk 0:00:37.9]} 26. b3 {[%clk
0:01:34.2]} 26... Bc6 {[%clk 0:00:20.5]} 27. Bxc6 {[%clk 0:01:29.8]} 27... bxc6
{[%clk 0:00:21.4]} 28. Qe2 {[%clk 0:01:29.5]} 28... a5 {[%clk 0:00:21]} 29. Rd1
{[%clk 0:01:08.6]} 29... Rxd1+ {[%clk 0:00:19.2]} 30. Qxd1 {[%clk 0:01:09.5]}
30... Qf4 {[%clk 0:00:19.7]} 31. Qc2 {[%clk 0:01:07.7]} 31... c5 {[%clk
0:00:17.9]} 32. a4 {[%clk 0:01:00]} 32... g6 {[%clk 0:00:18.3]} 33. Qc4 {[%clk
0:00:48.7]} 33... Kg7 {[%clk 0:00:18.3]} 34. Qxc5 {[%clk 0:00:48.5]} 34... Qxe4
{[%clk 0:00:18.4]} 35. Qxa5 {[%clk 0:00:48.1]} 35... Qf4 {[%clk 0:00:13.8]} 36.
Qc3 {[%clk 0:00:46.3]} 36... f6 {[%clk 0:00:09.1]} 37. a5 {[%clk 0:00:45.5]}
37... Qe4 {[%clk 0:00:08.7]} 38. a6 {[%clk 0:00:42.3]} 38... Qb1+ {[%clk
0:00:09.2]} 39. Kh2 {[%clk 0:00:41.7]} 39... Qa2 {[%clk 0:00:09.8]} 40. Qc7+
{[%clk 0:00:32.6]} 40... Kh6 {[%clk 0:00:09.9]} 41. a7 {[%clk 0:00:32.6]} 41...
Qxf2 {[%clk 0:00:10]} 42. Qc1+ {[%clk 0:00:27.2]} 1-0